[Event "Romanian Superleague 2022"]
[Site "Oradea"]
[Date "2022.09.28"]
[Round "8.7"]
[White "Dobre, Claudiu-Cristian"]
[Black "Nguyen, Thai Dai Van"]
[Result "0-1"]
[ECO "A06"]
[WhiteElo "2268"]
[BlackElo "2627"]
[Annotator "TA"]
[PlyCount "72"]
[EventDate "2022.09.21"]
[EventType "team-tourn"]
[EventCountry "ROU"]
[SourceTitle "playchess.com"]
[Source "ChessBase"]
[SourceQuality "1"]
[TimeControl "40/5400+30:1800+30"]

{[%evp 9,72,22,68,0,0,0,3,-12,-8,-25,-14,-17,-23,-24,-26,-29,-19,-24,-24,-35,-27,-72,-64,-81,-88,-98,-102,-97,-78,-91,-99,-108,-112,-132,-115,-130,-126,-131,-76,-86,-81,-85,-75,-83,-95,-216,-216,-208,-208,-195,-200,-247,-244,-362,-356,-552,-536,-512,-500,-644,-641,-619,-602,-577,-570]} 1. Nf3 {[%emt 0:00:04]} d5 {[%emt 0:03:03]} 2. b3 {[%emt 0:02:46]} c5 {[%emt 0:11:19]} 3. e3 {[%emt 0:00:25]} a6 {[%emt 0:03:24]} 4. Bb2 {[%emt 0:01:32]} Nc6 {[%emt 0:00:07]} 5. d4 {[%emt 0:07:03]} Bg4 {[%emt 0:07:40]} (5... Nf6 $11) 6. Nbd2 {[%emt 0:03:32] A06: Réti Opening: 1 Nf3 d5.} (6. dxc5 $14 e5 7. h3 Bxf3 8. Qxf3) 6... cxd4 $11 {[%emt 0:00:32]} 7. exd4 {[%emt 0:00:15]} e6 {[%emt 0:00:19]} 8. a3 {[%emt 0:01:02] The position is equal.} Bd6 {[%emt 0:08:00]} 9. Bd3 {[%emt 0:06:56]} Nf6 {[%emt 0:01:40]} 10. O-O {[%emt 0:05:20]} O-O {[%emt 0:00:16]} 11. Re1 {[%emt 0:22:36] [#]} Bf4 $146 {[%emt 0:03:15]} ({Predecessor:} 11... Re8 12. Nf1 Rc8 13. Be2 Qc7 14. Ne5 Bxe2 15. Qxe2 b5 16. Rac1 Qb6 17. Qd3 Ne4 18. Nxc6 Rxc6 {½-½ (71) Rozic,V (2127)-Hryb,T Peniscola 2002}) 12. Nf1 {[%emt 0:02:32]} Re8 {[%emt 0:04:15]} 13. Ng3 {[%emt 0:15:54]} e5 {[%emt 0:01:40]} 14. dxe5 {[%emt 0:00:33] [#]} Bxe5 {[%emt 0:00:09]} 15. c3 {[%emt 0:00:13]} (15. Bxe5 Nxe5) 15... Qb6 {[%emt 0:01:40]} 16. b4 {[%emt 0:13:43]} Rad8 {[%emt 0:07:39] Black is more active.} 17. Qc2 {[%emt 0:08:51]} Bxf3 {[%emt 0:01:25]} 18. gxf3 {[%emt 0:00:06]} Rc8 {[%emt 0:00:28][%cal Oc6d4]} 19. Qd2 {[%emt 0:02:21] [#]} Qc7 $1 {[%emt 0:00:51]} 20. Bf5 {[%emt 0:01:45]} Rcd8 {[%emt 0:02:04]} 21. Kg2 {[%emt 0:02:29]} Ne7 {[%emt 0:05:23]} 22. Qd3 {[%emt 0:00:56]} Nxf5 {[%emt 0:03:26]} 23. Qxf5 {[%emt 0:00:10]} Bxc3 {[%emt 0:10:36]} ({Black should try} 23... Re6 24. Rac1 Nd7) 24. Rxe8+ $17 {[%emt 0:00:32]} Rxe8 {[%emt 0:00:06]} 25. Rc1 {[%emt 0:00:45]} d4 {[%emt 0:00:00] White must now prevent ...Re5.} 26. Bxc3 {[%emt 0:00:15]} dxc3 {[%emt 0:00:01]} 27. Qc5 {[%emt 0:00:38] This move loses the game for White.} (27. Qd3 $17) 27... Qxc5 $19 {[%emt 0:00:03]} 28. bxc5 {[%emt 0:00:04][%mdl 4096] Endgame KRN-KRN} Nd5 {[%emt 0:00:04] And now ...Nf4+ would win.} 29. Ne4 {[%emt 0:01:08]} Rc8 {[%emt 0:00:02]} ({Inferior is} 29... Nf4+ 30. Kf1 $17) 30. Kf1 {[%emt 0:00:25]} f5 {[%emt 0:00:37]} 31. Nd6 {[%emt 0:00:30]} (31. Nxc3 $142 Rxc5 32. Ne2 Rxc1+ 33. Nxc1) 31... Rxc5 {[%emt 0:02:27]} 32. Nxb7 {[%emt 0:00:07]} (32. Nxf5 $142 Nf4 33. Ne3) 32... Rc7 {[%emt 0:00:10] Black is clearly winning.} 33. Na5 {[%emt 0:00:47]} Nf4 {[%emt 0:01:07]} 34. Nb3 {[%emt 0:00:39]} c2 {[%emt 0:01:53]} 35. Nd4 {[%emt 0:00:33]} Rd7 {[%emt 0:00:04]} 36. Nxc2 {[%emt 0:00:26]} Rc7 {[%emt 0:00:03] Weighted Error Value: White=0.29 (precise) /Black=0.05 (flawless)} 0-1

[Event "Romanian Superleague 2022"]
[Site "Oradea"]
[Date "2022.09.28"]
[Round "8.8"]
[White "Mendonca, Leon Luke"]
[Black "Padurariu, Mihai-Edward"]
[Result "1-0"]
[ECO "E14"]
[WhiteElo "2558"]
[BlackElo "2263"]
[Annotator "TA"]
[PlyCount "77"]
[EventDate "2022.09.21"]
[EventType "team-tourn"]
[EventCountry "ROU"]
[SourceTitle "playchess.com"]
[Source "ChessBase"]
[SourceQuality "1"]
[TimeControl "40/5400+30:1800+30"]

{[%evp 21,77,25,27,27,42,31,37,40,35,6,25,24,30,24,79,88,114,83,116,18,158,178,219,220,222,231,243,227,283,267,278,268,333,224,387,362,395,366,406,407,395,373,649,524,2995,1164,29988,29989,29989,29990,29990,29991,29991,2385,29996,29997,29997,29998]} 1. d4 {[%emt 0:00:04]} Nf6 {[%emt 0:00:14]} 2. c4 {[%emt 0:00:36]} e6 {[%emt 0:00:12]} 3. Nf3 {[%emt 0:00:14]} Bb4+ {[%emt 0:01:31]} 4. Nbd2 {[%emt 0:00:56]} b6 {[%emt 0:00:48]} 5. a3 {[%emt 0:00:13]} Bxd2+ {[%emt 0:00:37]} 6. Qxd2 {[%emt 0:00:05]} Bb7 {[%emt 0:02:23]} 7. e3 {[%emt 0:00:05]} a5 {[%emt 0:02:37]} 8. b3 {[%emt 0:00:22]} O-O {[%emt 0:04:46]} 9. Be2 {[%emt 0:00:28]} d6 {[%emt 0:04:41]} 10. O-O {[%emt 0:00:25]} Nbd7 {[%emt 0:03:21]} 11. Bb2 {[%emt 0:00:08]} Qe7 {[%emt 0:00:56]} 12. Qc2 {[%emt 0:09:37] E14: Queen's Indian: Classical Variation (4 e3).} Ne4 {[%emt 0:10:09]} 13. Rad1 {[%emt 0:09:45]} f5 {[%emt 0:05:44]} 14. d5 {[%emt 0:01:50] White is slightly better.} e5 {[%emt 0:01:46] Prevents Nd4.} 15. Ne1 {[%emt 0:09:18]} Qg5 {[%emt 0:08:40] [#]} 16. g3 $146 {[%emt 0:03:20]} ({Predecessor:} 16. Bc1 Qg6 17. f3 Nef6 18. f4 Ng4 19. h3 Nh6 20. Nf3 Rad8 21. b4 axb4 22. axb4 {½-½ (31) Vitiugov,N (2609)-Ulko,J (2482) Moscow 2008}) 16... Qh6 {[%emt 0:09:00]} 17. Ng2 {[%emt 0:02:38]} Ng5 {[%emt 0:02:25] [#]} (17... Bc8 $11) 18. f4 $1 $16 {[%emt 0:17:26]} Nh3+ {[%emt 0:12:59]} 19. Kh1 {[%emt 0:00:02]} g5 {[%emt 0:07:22] Inhibits Nh4.} 20. Bd3 {[%emt 0:04:08]} ({Don't play} 20. fxe5 Nxe5 21. e4 (21. Bxe5 dxe5 22. e4 Bc8 $14) 21... Bc8 $14) (20. g4 $16) 20... e4 {[%emt 0:07:28] Black is on the road to losing.} (20... Bc8 $1 $11) 21. Be2 {[%emt 0:01:24]} Rae8 {[%emt 0:03:00]} 22. Qc3 {[%emt 0:07:04][%cal Oe2h5] Hoping for Bh5!} Qf6 {[%emt 0:00:31]} 23. Qd2 {[%emt 0:17:07]} ({But not} 23. Qxf6 Nxf6 24. fxg5 Ng4) 23... Qh6 {[%emt 0:00:12]} 24. b4 {[%emt 0:08:58]} axb4 {[%emt 0:03:57]} 25. axb4 {[%emt 0:00:03]} Nf6 {[%emt 0:01:56]} 26. Qd4 {[%emt 0:01:23]} gxf4 {[%emt 0:00:35]} 27. Nxf4 {[%emt 0:02:00]} Ng5 {[%emt 0:00:37]} (27... Nxf4 28. Rxf4 Bc8) 28. Ne6 $18 {[%emt 0:01:20]} Rxe6 {[%emt 0:00:30]} 29. dxe6 {[%emt 0:01:33]} Nf3 {[%emt 0:02:00]} 30. Bxf3 {[%emt 0:00:20]} exf3 {[%emt 0:00:02]} 31. Rf2 {[%emt 0:01:02]} Kg7 $2 {[%emt 0:02:10]} (31... Qg7 32. Ra1 Be4) 32. g4 {[%emt 0:01:09] Rg1 is the strong threat.} Qh4 {[%emt 0:01:31] [#]} 33. gxf5 $1 {[%emt 0:01:22]} Be4 {[%emt 0:01:43]} (33... Qxd4 34. Bxd4) 34. Rg1+ {[%emt 0:00:31]} Kh6 {[%emt 0:00:02]} 35. e7 {[%emt 0:00:30]} Rf7 {[%emt 0:00:14] [#]} 36. Qxf6+ $3 {[%emt 0:00:27][%mdl 512]} Rxf6 {[%emt 0:00:02]} 37. Bxf6 {[%emt 0:00:23]} (37. e8=Q $142 Bxf5 38. Qe7 Kh5 39. Bxf6 Qg4 40. Rxg4 Kxg4 41. h3+ Kh5 42. Qf7+ Bg6 43. Qd5+ Bf5 44. Qxf5+ Kh6 45. Qg5#) 37... Qxf2 {[%emt 0:00:20]} 38. Bg7+ {[%emt 0:00:20]} Kh5 {[%emt 0:00:15]} 39. e8=Q+ {[%emt 0:00:02] Weighted Error Value: White=0.22 (precise) /Black=0.70} 1-0

[Event "Romanian Superleague 2022"]
[Site "Oradea"]
[Date "2022.09.28"]
[Round "8.9"]
[White "Voiteanu, Gabriel"]
[Black "Ghimpu, Samuel-Timotei"]
[Result "0-1"]
[ECO "E04"]
[WhiteElo "2154"]
[BlackElo "2434"]
[Annotator "TA"]
[PlyCount "115"]
[EventDate "2022.09.21"]
[EventType "team-tourn"]
[EventCountry "ROU"]
[SourceTitle "playchess.com"]
[Source "ChessBase"]
[SourceQuality "1"]
[TimeControl "40/5400+30:1800+30"]

{[%evp 14,115,7,0,0,-36,-32,-29,-37,-133,-127,-129,-92,-143,-131,-137,-136,-144,-143,-137,-137,-132,-133,-214,-216,-243,-243,-241,-228,-222,-208,-205,-160,-168,-162,-156,-144,-176,-154,-157,-148,-151,-143,-139,-142,-170,-168,-230,-222,-240,-240,-238,-238,-263,-260,-278,-256,-350,-350,-350,-350,-335,-343,-335,-343,-339,-343,-343,-343,-585,-585,-547,-335,-832,-804,-1385,-655,-1381,-1350,-1065,-949,-728,-456,-1719,-1683,-1648,-1648,-1558,-1623,-1534,-1528,-1443,-1326,-2023,-1727,-29976,-29977,-29977,-29978,-29978,-29979,-29978,-29979,-29977]} 1. d4 {[%emt 0:05:47]} Nf6 {[%emt 0:00:30]} 2. c4 {[%emt 0:00:26]} e6 {[%emt 0:00:23]} 3. Nf3 {[%emt 0:00:17]} d5 {[%emt 0:00:13]} 4. g3 {[%emt 0:00:11]} dxc4 {[%emt 0:00:11]} 5. Bg2 {[%emt 0:00:32]} Bd7 {[%emt 0:00:20]} 6. Ne5 {[%emt 0:02:56]} Bc6 {[%emt 0:01:28]} 7. Nxc6 {[%emt 0:02:55]} Nxc6 {[%emt 0:00:19]} 8. Qa4 {[%emt 0:06:29]} Qd7 {[%emt 0:00:18] E04: Open Catalan: 5 Nf3.} 9. Bxc6 {[%emt 0:24:38] has lost popularity (9.Qxc4).} Qxc6 {[%emt 0:01:21]} 10. Qxc6+ {[%emt 0:00:06]} bxc6 {[%emt 0:00:02] [#] Black has an edge.} 11. Na3 $146 {[%emt 0:15:12]} ({White should try} 11. O-O $15) ({Predecessor:} 11. Nd2 O-O-O 12. e3 c5 13. dxc5 c3 14. bxc3 Bxc5 15. Nb3 Be7 16. Bb2 Ne4 17. Ke2 {1-0 (122) Grigoryan,A (2572)-Socko,B (2619) St Petersburg 2012}) 11... Bxa3 $17 {[%emt 0:01:51]} 12. bxa3 {[%emt 0:00:01]} Kd7 {[%emt 0:00:53]} 13. a4 {[%emt 0:05:20]} (13. Kd2 $142) 13... Rab8 {[%emt 0:15:08]} 14. Ba3 {[%emt 0:02:34] Inhibits Rb4.} Rb6 {[%emt 0:00:44] Black is more active.} 15. Rc1 {[%emt 0:03:16]} Rhb8 {[%emt 0:01:13]} 16. Kd2 {[%emt 0:09:55]} Ne4+ {[%emt 0:00:41]} 17. Ke3 {[%emt 0:00:12]} Nd6 {[%emt 0:00:13]} 18. Bc5 {[%emt 0:12:50]} (18. Bxd6 $17 cxd6 19. Rxc4) 18... Ra6 {[%emt 0:02:48]} 19. Rb1 {[%emt 0:02:01]} ({Of course not} 19. Bxd6 cxd6 20. Rxc4 Rb2) 19... Rxb1 {[%emt 0:02:51]} 20. Rxb1 {[%emt 0:00:01]} Rxa4 $19 {[%emt 0:00:16][%mdl 4096] Endgame KRB-KRN} 21. a3 {[%emt 0:00:49]} Kc8 {[%emt 0:05:27] Against Rb8+} 22. f3 {[%emt 0:03:42]} Ra5 {[%emt 0:14:04][%cal Oe6e5]} 23. Ra1 {[%emt 0:00:15]} Nb7 {[%emt 0:02:22]} 24. Bf8 {[%emt 0:00:43]} Nd6 {[%emt 0:00:26]} 25. g4 {[%emt 0:00:55]} g6 {[%emt 0:00:27]} 26. a4 {[%emt 0:00:47] Prevents Rb5.} Kd7 {[%emt 0:02:14]} 27. Kd2 {[%emt 0:00:26]} c5 {[%emt 0:04:25]} 28. dxc5 {[%emt 0:00:33]} Rxc5 {[%emt 0:00:02]} 29. Kc3 {[%emt 0:00:20]} Rc6 {[%emt 0:00:21]} 30. e4 {[%emt 0:00:22]} (30. Rb1 $142) 30... Rb6 {[%emt 0:00:41]} 31. Bxd6 {[%emt 0:00:50]} cxd6 {[%emt 0:00:35]} ({Not} 31... Rxd6 32. Kxc4 Rd2 33. h4) 32. Kxc4 {[%emt 0:00:09] KR-KR} a5 {[%emt 0:00:05]} 33. h4 {[%emt 0:00:29]} Rb4+ {[%emt 0:00:55]} 34. Kc3 {[%emt 0:00:21]} h6 {[%emt 0:01:03]} 35. h5 {[%emt 0:00:44]} g5 {[%emt 0:00:37]} 36. Kd3 {[%emt 0:00:35]} Ke7 {[%emt 0:00:11] And now ...Kf6 would win.} 37. Ke3 {[%emt 0:00:28]} Kf6 {[%emt 0:00:32]} 38. Kf2 {[%emt 0:00:34]} Ke5 {[%emt 0:00:11] [#] White must now prevent ...Kf4.} 39. Kg3 {[%emt 0:00:04]} d5 {[%emt 0:06:06]} 40. exd5 {[%emt 0:00:00]} Kxd5 {[%emt 0:00:00]} ({Wrong is} 40... exd5 $2 41. Re1+ Kf6 42. Ra1 $19) 41. Rc1 $2 {[%emt 0:07:37]} (41. Kf2) 41... Rxa4 {[%emt 0:14:25] ...Rc4 is the strong threat.} 42. Rc8 {[%emt 0:01:10]} Ke5 {[%emt 0:00:09]} 43. Rh8 $2 {[%emt 0:01:26]} (43. Rc7) 43... Kf6 {[%emt 0:00:11] [#] Strongly threatening ...Ra1.} 44. Ra8 {[%emt 0:00:09]} Ra2 {[%emt 0:01:15]} (44... Ra1 $142 45. Kf2 a4) 45. Kh3 {[%emt 0:00:26]} a4 {[%emt 0:03:56][%cal Ba5a4,Ba4a3,Ba3a2][%mdl 32]} 46. Ra7 {[%emt 0:00:35]} a3 {[%emt 0:01:33]} 47. Kg3 {[%emt 0:00:04]} Ke5 {[%emt 0:09:41]} 48. Rxf7 {[%emt 0:01:58]} (48. Ra4 $142) 48... Rd2 {[%emt 0:00:50]} 49. Ra7 {[%emt 0:00:26]} a2 {[%emt 0:00:08]} 50. Ra4 {[%emt 0:10:17]} Rc2 {[%emt 0:05:22]} 51. Ra5+ {[%emt 0:05:34]} Kf6 {[%emt 0:01:01]} 52. Ra6 {[%emt 0:00:38]} Rb2 {[%emt 0:00:35]} 53. Kh3 {[%emt 0:04:27]} Ke7 {[%emt 0:00:13]} 54. f4 {[%emt 0:00:46]} gxf4 {[%emt 0:01:07] Black mates.} 55. g5 {[%emt 0:00:06]} f3 {[%emt 0:00:11]} 56. Ra7+ {[%emt 0:02:34]} Kd6 {[%emt 0:00:01]} 57. Ra6+ {[%emt 0:01:07]} Ke5 {[%emt 0:00:42]} 58. Ra5+ {[%emt 0:00:45] Weighted Error Value: White=0.56/Black=0.17 (very precise)} 0-1

[Event "Romanian Superleague 2022"]
[Site "Oradea"]
[Date "2022.09.28"]
[Round "8.10"]
[White "David, Alexandru-Vasile"]
[Black "Oprisor, Razvan-Gabriel"]
[Result "1/2-1/2"]
[ECO "A52"]
[WhiteElo "2417"]
[BlackElo "2175"]
[Annotator "TA"]
[PlyCount "29"]
[EventDate "2022.09.21"]
[EventType "team-tourn"]
[EventCountry "ROU"]
[SourceTitle "playchess.com"]
[Source "ChessBase"]
[SourceQuality "1"]
[TimeControl "40/5400+30:1800+30"]

{[%evp 9,29,29,24,28,15,4,15,5,28,25,25,22,66,81,83,39,68,30,80,-13,0,0]} 1. d4 {[%emt 0:00:08]} Nf6 {[%emt 0:00:14]} 2. c4 {[%emt 0:00:11]} e5 {[%emt 0:00:11]} 3. dxe5 {[%emt 0:00:54]} Ng4 {[%emt 0:00:12]} 4. e3 {[%emt 0:00:28]} Nxe5 {[%emt 0:00:57]} 5. f4 {[%emt 0:00:13]} Ng6 {[%emt 0:02:43]} 6. Bd3 {[%emt 0:04:44] A52: Budapest Gambit.} d5 {[%emt 0:04:30] [#]} 7. Bxg6 $146 {[%emt 0:06:03]} ({Predecessor:} 7. cxd5 Qxd5 8. Nf3 Nc6 9. Nc3 Qh5 10. O-O Bc5 11. Ne4 Bb6 12. Ng3 Qc5 13. Kh1 {1-0 (23) Tarasova,V (2226)-Perez Rodriguez,J (2251) Chess.com INT 2021}) 7... hxg6 {[%emt 0:01:14]} 8. cxd5 {[%emt 0:00:09]} Bb4+ {[%emt 0:04:00]} 9. Bd2 {[%emt 0:14:29]} Bc5 {[%emt 0:04:52]} 10. Nc3 {[%emt 0:00:15]} Qh4+ {[%emt 0:02:41]} (10... c6 {keeps more tension.} 11. e4 Qh4+ 12. g3 Qxg3+ 13. hxg3 Rxh1 14. Ke2 Rxg1 15. Qxg1 Bg4+) 11. g3 {[%emt 0:03:08]} Qe7 {[%emt 0:00:13]} 12. Qf3 {[%emt 0:01:25]} c6 {[%emt 0:02:35]} 13. Nge2 {[%emt 0:02:17]} O-O {[%emt 0:02:26]} (13... Nd7 $11 {remains equal.}) 14. O-O {[%emt 0:03:39]} (14. O-O-O $16) 14... Nd7 {[%emt 0:03:36][%mdl 1024] Black has compensation.} 15. Ne4 {[%emt 0:11:33] Weighted Error Value: White=0.26 (precise) /Black=0.17 (very precise)} 1/2-1/2

[Event "Romanian Superleague 2022"]
[Site "Oradea"]
[Date "2022.09.28"]
[Round "8.11"]
[White "Levay, Sorin"]
[Black "Berescu, Alin-Mile"]
[Result "1/2-1/2"]
[WhiteElo "2138"]
[BlackElo "2440"]
[Annotator "TA"]
[PlyCount "19"]
[EventDate "2022.09.21"]
[EventType "team-tourn"]
[EventCountry "ROU"]
[SourceTitle "playchess.com"]
[Source "ChessBase"]
[SourceQuality "1"]
[TimeControl "40/5400+30:1800+30"]

{[%evp 12,19,7,0,12,-6,8,-4,-4,0]} 1. e4 {[%emt 0:00:02]} e5 {[%emt 0:01:10]} 2. Nc3 {[%emt 0:00:09]} Nf6 {[%emt 0:01:21][%cal Bg8f6,Bf6d7,Bd7c5][%mdl 32]} 3. Nf3 {[%emt 0:00:07]} Nc6 {[%emt 0:00:30]} 4. Bb5 {[%emt 0:00:07]} Bb4 {[%emt 0:01:39]} 5. O-O {[%emt 0:00:06]} O-O {[%emt 0:00:21]} 6. Bxc6 {[%emt 0:00:03]} dxc6 {[%emt 0:01:49]} 7. d3 {[%emt 0:00:07] The position is equal.} Nd7 $1 {[%emt 0:08:43][%mdl 4] is currently scoring better than 7...Re8. C49: Four Knights: 4 Bb5 Bb4.} 8. Qe2 {[%emt 0:00:13]} Bd6 {[%emt 0:03:13] [#]} 9. Nd1 $146 {[%emt 0:00:08]} ({Predecessor:} 9. Be3 Qe7 10. a4 a5 11. Nd2 Nc5 12. Bxc5 Bxc5 13. Nc4 Bd4 14. Nd1 Be6 15. Nd2 b5 {1-0 (38) Mihajlovic,M (2190)-Vulinovic,R (2224) Belgrade 2012}) 9... Nc5 {[%emt 0:03:42]} 10. Ne3 {[%emt 0:00:25] Not much happened in this game.  Weighted Error Value: White=0.09 (flawless) /Black=0.08 (flawless)} 1/2-1/2

[Event "Romanian Superleague 2022"]
[Site "Oradea"]
[Date "2022.09.28"]
[Round "8.12"]
[White "Talu, Mircea"]
[Black "Gulie, Cosmin"]
[Result "1-0"]
[ECO "B35"]
[WhiteElo "2331"]
[BlackElo "1973"]
[Annotator "TA"]
[PlyCount "125"]
[EventDate "2022.09.21"]
[EventType "team-tourn"]
[EventCountry "ROU"]
[SourceTitle "playchess.com"]
[Source "ChessBase"]
[SourceQuality "1"]
[TimeControl "40/5400+30:1800+30"]

{[%evp 20,125,29,22,43,51,46,37,54,39,41,59,52,39,54,55,68,72,96,74,79,68,68,69,85,74,74,70,105,107,102,102,116,109,133,133,133,133,133,133,133,133,133,133,133,133,133,133,133,133,133,133,133,0,133,133,133,133,133,133,133,0,133,133,133,106,180,180,170,181,202,190,194,132,132,132,189,134,133,133,133,133,133,133,133,123,221,221,221,214,197,193,190,193,214,214,221,221,214,211,6203,5964,29974,29974,29974,29962,6399,6319]} 1. e4 {[%emt 0:00:38]} c5 {[%emt 0:00:15]} 2. Nf3 {[%emt 0:00:19]} g6 {[%emt 0:00:41]} 3. d4 {[%emt 0:01:04]} cxd4 {[%emt 0:00:06]} 4. Nxd4 {[%emt 0:03:56]} Bg7 {[%emt 0:00:24]} 5. Be3 {[%emt 0:00:56]} Nc6 {[%emt 0:00:14]} 6. Nc3 {[%emt 0:01:12]} Nf6 {[%emt 0:00:31]} 7. Bc4 {[%emt 0:00:31]} O-O {[%emt 0:01:35]} 8. Bb3 {[%emt 0:00:07]} Ng4 {[%emt 0:01:54]} 9. Qxg4 {[%emt 0:01:05]} Nxd4 {[%emt 0:00:08]} 10. Qd1 {[%emt 0:01:16]} Nxb3 {[%emt 0:09:20]} 11. axb3 {[%emt 0:00:12]} Bxc3+ {[%emt 0:01:01] B35: Sicilian: Accelerated Dragon with 5 Nc3: main line.} 12. bxc3 {[%emt 0:00:13]} Qc7 {[%emt 0:00:01]} 13. c4 {[%emt 0:13:50]} b6 {[%emt 0:00:32] White is slightly better.} 14. Bh6 {[%emt 0:00:18]} Re8 {[%emt 0:00:49]} 15. Qd4 {[%emt 0:00:22][%csl Gh6][%cal Rd4g7]} e5 {[%emt 0:00:59] [#]} 16. Qd2 $146 {[%emt 0:08:54]} ({Predecessor:} 16. Qd3 Bb7 17. O-O Qc6 18. f3 a5 19. Rfd1 Rad8 20. Bg5 f6 21. Bh4 g5 22. Bf2 {1-0 (36) Doran,C-Barene,S Helsingor 2008}) 16... Qc6 {[%emt 0:08:35]} 17. f3 {[%emt 0:02:21]} Re6 {[%emt 0:07:35]} 18. h4 $36 {[%emt 0:17:56][%mdl 2048] White is in control.} Qd6 {[%emt 0:03:01]} 19. g4 {[%emt 0:18:18]} Qxd2+ {[%emt 0:01:21]} 20. Kxd2 {[%emt 0:01:23]} Bb7 {[%emt 0:04:48]} 21. Ke2 {[%emt 0:04:34]} f6 {[%emt 0:03:16]} 22. Rhd1 {[%emt 0:01:22]} Bc6 {[%emt 0:07:38]} 23. Be3 {[%emt 0:02:19]} Ree8 {[%emt 0:03:09]} 24. Kf2 {[%emt 0:05:02]} Reb8 {[%emt 0:01:45]} 25. b4 {[%emt 0:03:19]} a6 {[%emt 0:01:05] Inhibits b5.} 26. Rd6 {[%emt 0:00:13]} Kg7 {[%emt 0:01:48]} 27. g5 $1 {[%emt 0:03:29] White has more active pieces.} fxg5 {[%emt 0:01:15]} 28. hxg5 {[%emt 0:00:07]} b5 {[%emt 0:01:20]} 29. c5 {[%emt 0:00:37]} Rf8 {[%emt 0:00:39]} 30. Ke2 {[%emt 0:02:21]} Rf7 {[%emt 0:00:39]} 31. Bd2 {[%emt 0:00:54]} Kg8 {[%emt 0:05:51]} 32. Bc3 {[%emt 0:01:48]} Re7 {[%emt 0:00:29]} 33. Kf2 {[%emt 0:01:27]} Rf8 {[%emt 0:01:16]} 34. Kg3 {[%emt 0:01:13]} (34. Rxa6 $6 Bxe4 35. Rf6 Bc6 $11) 34... Ra8 {[%emt 0:01:18]} 35. Kg4 {[%emt 0:00:29]} Kf7 {[%emt 0:01:12]} 36. Kg3 {[%emt 0:00:25]} Kg8 $1 {[%emt 0:00:06]} 37. Rf6 {[%emt 0:01:16]} Ree8 {[%emt 0:02:00]} 38. Kg4 {[%emt 0:00:58]} Re7 {[%emt 0:00:13]} 39. Ra3 {[%emt 0:01:14]} Ree8 {[%emt 0:01:21]} 40. Ra1 {[%emt 0:00:00]} Re7 $1 {[%emt 0:00:00]} 41. Rd1 {[%emt 0:07:39]} Rf8 {[%emt 0:03:59]} 42. Rdd6 {[%emt 0:06:26]} Rxf6 {[%emt 0:01:50]} (42... Ree8 $16 43. Rxf8+ Kxf8) 43. gxf6 $16 {[%emt 0:01:42][%mdl 4096] Endgame KRB-KRB} (43. Rxf6 Re8 44. Rd6 Kf7 $16) 43... Re8 {[%emt 0:00:38]} 44. Kg5 {[%emt 0:00:14]} Kf7 {[%emt 0:04:53]} 45. Kh6 {[%emt 0:00:12]} Kg8 {[%emt 0:03:20]} 46. Bd2 {[%emt 0:07:46]} (46. Bb2 $18) 46... Ra8 {[%emt 0:15:04]} 47. Be1 {[%emt 0:00:14]} Kf7 {[%emt 0:02:28]} (47... Rc8 $16 {might work better.} 48. Bg3 Re8) 48. Kxh7 {[%emt 0:05:11]} (48. Bc3 $18) 48... g5 {[%emt 0:00:10][%cal Og5g4] [#]} 49. Kh6 $1 {[%emt 0:02:42]} Rg8 {[%emt 0:00:08]} 50. Kh5 {[%emt 0:00:39] Bc3 is the strong threat.} Rg6 {[%emt 0:00:05]} 51. Kg4 {[%emt 0:02:01] And now Kf5 would win.} Rxf6 {[%emt 0:00:50] [#]} 52. Rd3 $1 {[%emt 0:00:20]} (52. Kxg5 $6 Rxf3 53. Rd3 Rf4 $11) 52... Rf4+ {[%emt 0:02:55]} (52... d6 $16 53. cxd6 Ke6) 53. Kxg5 $18 {[%emt 0:00:12]} Ke6 {[%emt 0:00:31]} 54. Bg3 {[%emt 0:01:01]} Rf8 {[%emt 0:00:47]} 55. Rd6+ {[%emt 0:00:36]} Ke7 {[%emt 0:00:50]} 56. Bh4 {[%emt 0:00:25]} ({Don't take} 56. Bxe5 $6 Rxf3 57. c3 (57. Bf6+ Ke8 $14) 57... Re3 $14) 56... Rf4 {[%emt 0:02:08]} 57. Kh5+ {[%emt 0:00:06]} Kf7 {[%emt 0:01:16]} 58. Rd3 {[%emt 0:00:14] Hoping for Bg5.} Ke8 {[%emt 0:05:15]} 59. Bg3 {[%emt 0:00:22]} Bxe4 $2 {[%emt 0:00:36]} (59... Rf8 60. Bxe5 Rg8) 60. Bxf4 {[%emt 0:01:45]} Bxd3 {[%emt 0:00:20]} 61. cxd3 {[%emt 0:00:41]} exf4 {[%emt 0:00:22]} 62. Kg4 {[%emt 0:00:09]} a5 {[%emt 0:00:10]} 63. bxa5 {[%emt 0:00:07] Weighted Error Value: White=0.11 (very precise) /Black=0.21 (precise)} 1-0